[Event "WYCC 2018 O18"]
[Site "Halkidiki"]
[Date "2018.10.27"]
[Round "8"]
[White "Stijve, Theo"]
[Black "Brewer, Callum D"]
[Result "1-0"]
[ECO "B12"]
[WhiteElo "2345"]
[BlackElo "2056"]
[Annotator "NA"]
[PlyCount "113"]
[EventDate "2018.10.20"]
[EventType "swiss"]
[EventCountry "GRE"]
[SourceTitle "playchess.com"]
[Source "ChessBase"]
[SourceQuality "1"]
[TimeControl "40/5400+30:1800+30"]

1. e4 {[%emt 0:00:11]} c6 {[%emt 0:00:00]} 2. d4 {[%emt 0:00:11]} d5 {[%emt 0:00:00]} 3. e5 {[%emt 0:00:11]} Bf5 {[%emt 0:00:00]} 4. h4 {[%emt 0:00:06]} h5 {[%emt 0:00:00]} 5. Bd3 {[%emt 0:00:08]} Bxd3 {[%emt 0:00:00]} 6. Qxd3 {[%emt 0:00:09]} Qa5+ {[%emt 0:00:00]} 7. Bd2 {[%emt 0:00:10]} Qa6 {[%emt 0:00:00]} 8. e6 {[%emt 0:00:08]} Qxd3 {[%emt 0:01:16]} 9. exf7+ {[%emt 0:00:07]} Kxf7 {[%emt 0:00:03]} 10. cxd3 {[%emt 0:00:10]} Nh6 {[%emt 0:03:14]} 11. Bc3 {[%emt 0:01:13]} Nf5 {[%emt 0:06:18]} 12. Nf3 {[%emt 0:06:05]} Nd7 {[%emt 0:12:27]} 13. Nbd2 {[%emt 0:02:40]} g6 {[%emt 0:06:47]} 14. Ng5+ {[%emt 0:03:19]} Kf6 {[%emt 0:09:08]} 15. Ndf3 {[%emt 0:00:37]} Bh6 $14 {[%emt 0:01:14]} 16. g3 {[%emt 0:06:13]} Bxg5 {[%emt 0:16:26]} 17. Nxg5 {[%emt 0:01:48]} a5 {[%emt 0:02:55]} 18. a4 {[%emt 0:05:23]} Rhe8 {[%emt 0:03:51]} 19. Kd1 {[%emt 0:12:21]} b6 {[%emt 0:02:58]} 20. Re1 {[%emt 0:01:56]} e6 {[%emt 0:01:11]} 21. b3 {[%emt 0:02:23]} Nf8 {[%emt 0:16:32]} 22. Ra2 {[%emt 0:04:02]} Re7 {[%emt 0:03:47]} 23. Rae2 {[%emt 0:01:17]} b5 {[%emt 0:03:46]} 24. Ra2 {[%emt 0:11:09]} b4 {[%emt 0:01:05]} 25. Ba1 {[%emt 0:00:15]} Nh7 {[%emt 0:04:38]} 26. Nf3 {[%emt 0:06:21]} Rc7 {[%emt 0:00:52]} 27. Rc2 {[%emt 0:01:00]} Nf8 {[%emt 0:01:24]} 28. Ne5 {[%emt 0:03:07]} Ra6 {[%emt 0:00:55]} 29. Bb2 {[%emt 0:06:29]} Nd7 {[%emt 0:00:52]} 30. Nf3 {[%emt 0:00:09]} Rc8 {[%emt 0:00:50]} 31. Ng5 {[%emt 0:07:17]} Nf8 {[%emt 0:00:46]} 32. Kd2 {[%emt 0:01:20]} Ke7 {[%emt 0:01:03]} 33. Ke2 {[%emt 0:02:15]} Kf6 {[%emt 0:00:57]} 34. Kf3 {[%emt 0:00:36]} Rc7 {[%emt 0:00:33]} 35. Kg2 {[%emt 0:03:51]} Rc8 {[%emt 0:00:03]} 36. Kh3 {[%emt 0:00:20]} Rc7 {[%emt 0:00:15]} 37. f3 {[%emt 0:00:39]} Re7 {[%emt 0:00:28]} 38. g4 {[%emt 0:02:19]} Ng7 {[%emt 0:00:19]} 39. Bc1 {[%emt 0:05:21]} Re8 {[%emt 0:00:01]} 40. Bf4 {[%emt 0:00:00]} Nd7 {[%emt 0:00:00]} 41. Nh7+ {[%emt 0:11:13]} Kf7 {[%emt 0:01:44]} 42. Bd6 {[%emt 0:03:57]} Rh8 {[%emt 0:03:01]} 43. Ng5+ {[%emt 0:01:34]} Kf6 {[%emt 0:00:10]} 44. Kg3 {[%emt 0:04:41]} Re8 {[%emt 0:01:02]} 45. Kf4 {[%emt 0:02:44]} Rh8 {[%emt 0:01:55]} 46. Kg3 {[%emt 0:00:54]} Re8 {[%emt 0:00:19]} 47. Rec1 {[%emt 0:01:08]} Rc8 {[%emt 0:01:08]} 48. Kf4 {[%emt 0:01:01]} Rb6 {[%emt 0:03:33]} 49. Nh3 {[%emt 0:05:45]} Ra6 {[%emt 0:01:18]} 50. Be5+ {[%emt 0:01:30]} Nxe5 {[%emt 0:01:50]} 51. dxe5+ {[%emt 0:00:02]} Kf7 {[%emt 0:02:45]} 52. d4 {[%emt 0:01:19]} Rb6 {[%emt 0:02:57]} 53. Rc5 {[%emt 0:00:50]} Ra6 {[%emt 0:00:32]} 54. Kg5 {[%emt 0:00:30]} Ne8 {[%emt 0:02:00]} 55. Nf4 {[%emt 0:00:40]} Ng7 {[%emt 0:00:45]} 56. Nxg6 {[%emt 0:01:15]} Rg8 {[%emt 0:00:26]} 57. Rxc6 {[%emt 0:00:27]} 1-0

[Event "WYCC 2018 O18"]
[Site "Halkidiki"]
[Date "2018.10.27"]
[Round "8"]
[White "Tran, Minh Thang"]
[Black "Miciano, John Marvin"]
[Result "1/2-1/2"]
[ECO "B18"]
[WhiteElo "2341"]
[BlackElo "2361"]
[Annotator "NA"]
[PlyCount "65"]
[EventDate "2018.10.20"]
[EventType "swiss"]
[EventCountry "GRE"]
[SourceTitle "playchess.com"]
[Source "ChessBase"]
[SourceQuality "1"]
[TimeControl "40/5400+30:1800+30"]

1. e4 {[%emt 0:00:00]} c6 {[%emt 0:00:23]} 2. d4 {[%emt 0:01:58]} d5 {[%emt 0:00:15]} 3. Nc3 {[%emt 0:00:06]} dxe4 {[%emt 0:00:13]} 4. Nxe4 {[%emt 0:00:06]} Bf5 {[%emt 0:00:34]} 5. Ng3 {[%emt 0:00:06]} Bg6 {[%emt 0:00:13]} 6. h4 {[%emt 0:00:07]} h6 {[%emt 0:00:12]} 7. Nf3 {[%emt 0:00:09]} e6 {[%emt 0:00:14]} 8. h5 {[%emt 0:01:02]} Bh7 {[%emt 0:00:19]} 9. Bd3 {[%emt 0:00:09]} Bxd3 {[%emt 0:00:23]} 10. Qxd3 {[%emt 0:00:08]} Nf6 {[%emt 0:00:32]} 11. Bf4 {[%emt 0:00:22]} Bd6 $11 {[%emt 0:02:59] LiveBook: 80 Games} 12. Ne5 {[%emt 0:06:15]} Bxe5 {[%emt 0:07:39]} 13. Bxe5 {[%emt 0:01:44]} Qa5+ {[%emt 0:00:15]} 14. c3 {[%emt 0:19:40]} Nbd7 {[%emt 0:01:15]} 15. f4 {[%emt 0:00:47]} O-O-O {[%emt 0:07:36]} 16. Qe2 {[%emt 0:06:21]} Ne8 {[%emt 0:07:09]} 17. Ne4 {[%emt 0:00:45]} f6 {[%emt 0:10:11]} 18. Bd6 {[%emt 0:01:43]} f5 {[%emt 0:03:54]} 19. Bb4 {[%emt 0:03:04]} Qc7 {[%emt 0:06:48]} 20. Nf2 {[%emt 0:09:06]} Nef6 {[%emt 0:01:01]} 21. Be7 {[%emt 0:17:07]} Rde8 {[%emt 0:00:24]} 22. Bxf6 {[%emt 0:00:07]} gxf6 {[%emt 0:01:57]} 23. Nd3 {[%emt 0:03:14]} e5 {[%emt 0:01:55]} 24. dxe5 {[%emt 0:03:31]} fxe5 {[%emt 0:00:09]} 25. fxe5 {[%emt 0:00:32]} Nxe5 {[%emt 0:00:10]} 26. O-O-O {[%emt 0:00:16]} Nxd3+ {[%emt 0:00:43]} 27. Qxd3 {[%emt 0:00:43]} Qf4+ {[%emt 0:00:11]} 28. Kc2 {[%emt 0:07:01]} Qe4 {[%emt 0:00:16]} 29. Rhf1 {[%emt 0:05:38]} Rhg8 {[%emt 0:04:59]} 30. Qxe4 {[%emt 0:03:28]} fxe4 {[%emt 0:00:55]} 31. Rd2 {[%emt 0:01:04]} e3 {[%emt 0:00:55]} 32. Re2 {[%emt 0:00:06]} Rg5 {[%emt 0:00:12]} 33. Rf3 {[%emt 0:00:00]} 1/2-1/2

[Event "WYCC 2018 O18"]
[Site "Halkidiki"]
[Date "2018.10.27"]
[Round "8"]
[White "Roshka, Yevgeniy"]
[Black "Tsomaia, Nikoloz"]
[Result "1/2-1/2"]
[ECO "B07"]
[WhiteElo "2328"]
[BlackElo "2201"]
[Annotator "NA"]
[PlyCount "155"]
[EventDate "2018.10.20"]
[EventType "swiss"]
[EventCountry "GRE"]
[SourceTitle "playchess.com"]
[Source "ChessBase"]
[SourceQuality "1"]
[TimeControl "40/5400+30:1800+30"]

1. e4 {[%emt 0:00:00]} d6 {[%emt 0:01:49]} 2. d4 {[%emt 0:02:12]} Nf6 {[%emt 0:00:06]} 3. Nc3 {[%emt 0:00:36]} Nbd7 {[%emt 0:00:13]} 4. f4 {[%emt 0:02:06]} e5 {[%emt 0:00:09]} 5. Nf3 {[%emt 0:00:19]} exd4 6. Qxd4 {[%emt 0:01:27]} c6 {[%emt 0:00:34]} 7. Be3 {[%emt 0:06:48]} d5 {[%emt 0:00:29]} 8. exd5 {[%emt 0:00:57]} Bc5 {[%emt 0:04:06]} 9. Qd3 $14 {[%emt 0:01:06]} Qe7 {[%emt 0:07:44]} 10. Kd2 {[%emt 0:01:05]} O-O {[%emt 0:17:38]} 11. Re1 {[%emt 0:03:11]} Bxe3+ {[%emt 0:02:47]} 12. Qxe3 {[%emt 0:00:28]} Qb4 {[%emt 0:01:47]} 13. Kc1 {[%emt 0:00:20]} cxd5 {[%emt 0:11:32]} 14. g3 {[%emt 0:05:21]} Nb6 {[%emt 0:04:07]} 15. Qe7 {[%emt 0:01:27]} Qa5 {[%emt 0:08:40]} 16. Nd4 {[%emt 0:00:47]} Nc4 {[%emt 0:00:22]} 17. Nb3 {[%emt 0:01:02]} Qa6 {[%emt 0:00:11]} 18. Bd3 {[%emt 0:11:42]} Qd6 {[%emt 0:11:27]} 19. Bxc4 {[%emt 0:02:46]} Qxe7 {[%emt 0:00:12]} 20. Rxe7 {[%emt 0:00:01]} dxc4 {[%emt 0:00:04]} 21. Na5 {[%emt 0:00:07]} b6 {[%emt 0:02:09]} 22. Nxc4 {[%emt 0:00:35]} Be6 {[%emt 0:00:15]} 23. Ne5 {[%emt 0:00:16]} Rfc8 {[%emt 0:02:00]} 24. Rd1 {[%emt 0:04:09]} h6 {[%emt 0:01:35]} 25. Rd6 {[%emt 0:02:44]} Ne8 {[%emt 0:11:30]} 26. Rc6 {[%emt 0:04:45]} Rd8 {[%emt 0:02:25]} 27. f5 {[%emt 0:04:15]} Bxf5 {[%emt 0:00:02]} 28. Rxf7 {[%emt 0:00:27]} Bh7 {[%emt 0:00:23]} 29. Rd7 {[%emt 0:03:03]} Rxd7 {[%emt 0:00:07]} 30. Nxd7 {[%emt 0:00:02]} Rd8 {[%emt 0:00:02]} 31. Ne5 {[%emt 0:00:00]} Bf5 {[%emt 0:00:01]} 32. Rc4 {[%emt 0:01:47]} Nf6 {[%emt 0:02:37]} 33. Rf4 {[%emt 0:02:00]} Be6 {[%emt 0:01:46]} 34. a4 {[%emt 0:00:36]} Re8 {[%emt 0:00:02]} 35. Nb5 {[%emt 0:01:23]} Bd5 {[%emt 0:01:02]} 36. Nd3 {[%emt 0:00:39]} Re2 {[%emt 0:00:24]} 37. Rf2 {[%emt 0:00:27]} Re7 {[%emt 0:00:07]} 38. b3 {[%emt 0:00:32]} a6 {[%emt 0:03:05]} 39. Nc3 {[%emt 0:00:19]} Bb7 {[%emt 0:00:06]} 40. Re2 {[%emt 0:00:00]} Rxe2 {[%emt 0:00:00]} 41. Nxe2 {[%emt 0:00:43]} Kf7 {[%emt 0:04:00]} 42. Kd2 {[%emt 0:02:02]} g5 {[%emt 0:04:03]} 43. Nd4 {[%emt 0:03:54]} Ng4 {[%emt 0:03:16]} 44. h3 {[%emt 0:00:35]} Nf6 {[%emt 0:00:02]} 45. Ne5+ {[%emt 0:00:12]} Ke7 {[%emt 0:00:56]} 46. Ke3 {[%emt 0:01:05]} Bc8 {[%emt 0:00:42]} 47. h4 {[%emt 0:01:09]} gxh4 {[%emt 0:00:50]} 48. gxh4 {[%emt 0:00:06]} Nd5+ {[%emt 0:01:58]} 49. Ke4 {[%emt 0:00:35]} Bb7 {[%emt 0:00:09]} 50. Kf5 {[%emt 0:06:08]} Ne3+ {[%emt 0:00:09]} 51. Kf4 {[%emt 0:00:03]} Nd5+ {[%emt 0:01:08]} 52. Kg4 {[%emt 0:00:36]} Ne3+ {[%emt 0:00:30]} 53. Kf4 {[%emt 0:01:08]} Nd5+ {[%emt 0:00:17]} 54. Kg3 {[%emt 0:00:18]} Kd6 {[%emt 0:00:47]} 55. Nd3 {[%emt 0:00:42]} Bc8 {[%emt 0:00:28]} 56. Kf3 {[%emt 0:00:23]} Bd7 {[%emt 0:00:47]} 57. c4 {[%emt 0:01:54]} Ne7 {[%emt 0:00:33]} 58. Ke3 {[%emt 0:03:11]} Ng6 {[%emt 0:01:30]} 59. Nf3 {[%emt 0:17:32]} Bc6 {[%emt 0:00:54]} 60. h5 {[%emt 0:08:04]} Ne7 {[%emt 0:00:04]} 61. Nd4 {[%emt 0:00:47]} Be8 {[%emt 0:00:57]} 62. Nf4 {[%emt 0:00:32]} Ke5 {[%emt 0:02:35]} 63. Nd3+ {[%emt 0:08:39]} Kd6 {[%emt 0:00:30]} 64. Nf4 {[%emt 0:00:59]} Ke5 {[%emt 0:00:02]} 65. Nde2 {[%emt 0:00:33]} Nf5+ {[%emt 0:01:21]} 66. Kd3 {[%emt 0:00:01]} Ng7 {[%emt 0:00:37]} 67. Nd5 {[%emt 0:01:19]} b5 {[%emt 0:00:16]} 68. a5 {[%emt 0:00:21]} bxc4+ {[%emt 0:00:21]} 69. bxc4 {[%emt 0:00:01]} Ne6 {[%emt 0:01:09]} 70. Ng3 {[%emt 0:01:09]} Nf4+ {[%emt 0:00:36]} 71. Nxf4 {[%emt 0:00:20]} Kxf4 {[%emt 0:00:01]} 72. Ne2+ {[%emt 0:06:49]} Ke5 {[%emt 0:00:30]} 73. Nd4 {[%emt 0:00:35]} Bxh5 {[%emt 0:00:12]} 74. Nc6+ {[%emt 0:00:15]} Kf4 {[%emt 0:02:25]} 75. Nb4 {[%emt 0:02:08]} Bf3 {[%emt 0:00:52]} 76. Kd4 {[%emt 0:01:26]} h5 {[%emt 0:00:52]} 77. Nd5+ {[%emt 0:00:29]} Kg3 {[%emt 0:02:44]} 78. Ne3 {[%emt 0:02:28]} 1/2-1/2

[Event "WYCC 2018 O18"]
[Site "Halkidiki"]
[Date "2018.10.27"]
[Round "8"]
[White "Szustakowski, Antoni"]
[Black "Ozates, Tuna"]
[Result "1-0"]
[ECO "D52"]
[WhiteElo "2319"]
[BlackElo "2225"]
[Annotator "NA"]
[PlyCount "99"]
[EventDate "2018.10.20"]
[EventType "swiss"]
[EventCountry "GRE"]
[SourceTitle "playchess.com"]
[Source "ChessBase"]
[SourceQuality "1"]
[TimeControl "40/5400+30:1800+30"]

1. d4 {[%emt 0:00:00]} d5 {[%emt 0:00:00]} 2. c4 {[%emt 0:00:00]} c6 {[%emt 0:00:00]} 3. Nc3 {[%emt 0:00:00]} Nf6 {[%emt 0:00:00]} 4. Nf3 {[%emt 0:00:00]} e6 {[%emt 0:00:00]} 5. Bg5 {[%emt 0:00:00]} Nbd7 {[%emt 0:00:03]} 6. e3 {[%emt 0:00:17]} Qa5 {[%emt 0:00:03]} 7. cxd5 {[%emt 0:00:18]} Nxd5 {[%emt 0:00:05]} 8. Qd2 {[%emt 0:00:34]} Bb4 {[%emt 0:00:04]} 9. Rc1 {[%emt 0:00:07]} h6 {[%emt 0:00:03]} 10. Bh4 {[%emt 0:00:17]} c5 {[%emt 0:00:09]} 11. Bc4 {[%emt 0:08:04]} Nxc3 {[%emt 0:16:23]} 12. bxc3 {[%emt 0:00:19]} Ba3 {[%emt 0:00:05]} 13. Rb1 {[%emt 0:02:37]} cxd4 $14 {[%emt 0:00:42]} 14. exd4 {[%emt 0:16:37]} Bd6 {[%emt 0:03:28]} 15. O-O {[%emt 0:01:45]} O-O {[%emt 0:00:38]} 16. Bd3 {[%emt 0:05:00]} Qc7 {[%emt 0:04:58]} 17. Qe2 {[%emt 0:07:16]} Re8 {[%emt 0:00:54]} 18. c4 {[%emt 0:01:18]} Be7 {[%emt 0:18:00]} 19. Qe4 {[%emt 0:14:55]} Nf6 {[%emt 0:07:55]} 20. Bxf6 {[%emt 0:01:47]} Bxf6 {[%emt 0:00:02]} 21. Ne5 {[%emt 0:00:15]} Bxe5 {[%emt 0:16:58]} 22. dxe5 {[%emt 0:01:34]} g6 {[%emt 0:00:53]} 23. h4 {[%emt 0:02:41]} Qc6 {[%emt 0:03:47]} 24. Qf4 {[%emt 0:03:54]} h5 {[%emt 0:13:53]} 25. Qf6 {[%emt 0:11:27]} Qd7 {[%emt 0:07:00]} 26. Bxg6 {[%emt 0:00:56]} Qe7 {[%emt 0:03:09]} 27. Bxh5 {[%emt 0:02:13]} Qxf6 {[%emt 0:00:06]} 28. exf6 {[%emt 0:00:07]} b6 {[%emt 0:00:21]} 29. Rb3 {[%emt 0:00:46]} e5 {[%emt 0:00:38]} 30. Rg3+ {[%emt 0:02:01]} Kf8 {[%emt 0:00:06]} 31. Re1 {[%emt 0:00:21]} Re6 {[%emt 0:01:08]} 32. Bf3 {[%emt 0:01:11]} Rb8 {[%emt 0:00:13]} 33. Bd5 {[%emt 0:00:02]} Rxf6 {[%emt 0:00:21]} 34. Rxe5 {[%emt 0:00:05]} Bb7 {[%emt 0:00:20]} 35. Rh5 {[%emt 0:02:20]} Ke7 {[%emt 0:00:08]} 36. Re3+ {[%emt 0:00:07]} Kd6 {[%emt 0:00:12]} 37. Bxb7 {[%emt 0:00:27]} Rxb7 {[%emt 0:00:01]} 38. Rd5+ {[%emt 0:00:06]} Kc6 {[%emt 0:00:03]} 39. g3 {[%emt 0:00:17]} a6 {[%emt 0:01:17]} 40. Rd4 {[%emt 0:00:00]} Kc5 {[%emt 0:00:00]} 41. Ree4 {[%emt 0:03:00]} Rf3 {[%emt 0:02:35]} 42. Rf4 {[%emt 0:02:44]} Rxf4 {[%emt 0:06:43]} 43. Rxf4 {[%emt 0:00:02]} Kd6 {[%emt 0:00:25]} 44. h5 {[%emt 0:00:30]} Ke5 {[%emt 0:00:52]} 45. h6 {[%emt 0:00:46]} f5 {[%emt 0:00:04]} 46. Rh4 {[%emt 0:00:03]} Rh7 {[%emt 0:00:04]} 47. Kg2 {[%emt 0:00:08]} Kf6 {[%emt 0:02:06]} 48. Kf3 {[%emt 0:00:28]} Kg6 {[%emt 0:00:14]} 49. Kf4 {[%emt 0:00:07]} Kf6 {[%emt 0:00:47]} 50. Rh3 {[%emt 0:00:14]} 1-0

[Event "WYCC 2018 O18"]
[Site "Halkidiki"]
[Date "2018.10.27"]
[Round "8"]
[White "Dobrovoljc, Vid"]
[Black "Ayats Llobera, Gerard"]
[Result "1/2-1/2"]
[ECO "C11"]
[WhiteElo "2309"]
[BlackElo "2399"]
[Annotator "NA"]
[PlyCount "81"]
[EventDate "2018.10.20"]
[EventType "swiss"]
[EventCountry "GRE"]
[SourceTitle "playchess.com"]
[Source "ChessBase"]
[SourceQuality "1"]
[TimeControl "40/5400+30:1800+30"]

1. e4 {[%emt 0:00:00]} e6 {[%emt 0:00:00]} 2. d4 {[%emt 0:00:00]} d5 {[%emt 0:00:00]} 3. Nc3 {[%emt 0:02:39]} Nf6 {[%emt 0:00:00]} 4. e5 {[%emt 0:00:27]} Nfd7 {[%emt 0:00:00]} 5. f4 {[%emt 0:00:39]} c5 {[%emt 0:00:00]} 6. Nf3 {[%emt 0:00:06]} Nc6 {[%emt 0:00:00]} 7. Be3 {[%emt 0:00:23]} Be7 {[%emt 0:00:00]} 8. Qd2 {[%emt 0:02:20]} O-O 9. Be2 {[%emt 0:02:56]} b6 {[%emt 0:00:00]} 10. O-O {[%emt 0:01:33]} f5 {[%emt 0:00:26]} 11. exf6 {[%emt 0:06:14]} Nxf6 {[%emt 0:00:04]} 12. Bb5 {[%emt 0:00:11]} Qc7 {[%emt 0:04:37]} 13. Bxc6 {[%emt 0:07:34]} Qxc6 {[%emt 0:00:13]} 14. Ne5 {[%emt 0:00:03]} Qc7 {[%emt 0:10:44]} 15. Rae1 {[%emt 0:02:02]} Ba6 $11 {[%emt 0:01:40]} 16. Rf3 {[%emt 0:02:00]} Rad8 {[%emt 0:04:52]} 17. Rh3 {[%emt 0:12:27]} b5 {[%emt 0:04:46]} 18. Qd3 {[%emt 0:08:17]} Qc8 {[%emt 0:03:46]} 19. Ng4 {[%emt 0:03:26]} g6 {[%emt 0:01:37]} 20. Nxf6+ {[%emt 0:02:32]} Bxf6 {[%emt 0:16:53]} 21. Ne2 {[%emt 0:08:49]} b4 {[%emt 0:03:12]} 22. Qd2 {[%emt 0:03:32]} Bxe2 {[%emt 0:00:20]} 23. Rxe2 {[%emt 0:00:07]} Qa6 {[%emt 0:02:02]} 24. c3 {[%emt 0:07:50]} Qxa2 {[%emt 0:05:04]} 25. cxb4 {[%emt 0:01:50]} cxb4 {[%emt 0:20:26]} 26. Qxb4 {[%emt 0:01:10]} Rb8 {[%emt 0:00:00]} 27. Qd6 {[%emt 0:03:24]} Rb6 {[%emt 0:00:49]} 28. Qd7 {[%emt 0:01:19]} Bg7 {[%emt 0:02:47]} 29. Bf2 {[%emt 0:01:58]} Qa6 {[%emt 0:05:15]} 30. Rhe3 {[%emt 0:03:41]} Bxd4 {[%emt 0:00:09]} 31. Rxe6 {[%emt 0:00:12]} Qa1+ {[%emt 0:02:26]} 32. Re1 {[%emt 0:01:29]} Qxb2 {[%emt 0:00:23]} 33. Bxd4 {[%emt 0:03:41]} Qxd4+ {[%emt 0:00:01]} 34. Kh1 {[%emt 0:00:07]} Qxf4 {[%emt 0:01:01]} 35. Re8 {[%emt 0:03:32]} Qf7 {[%emt 0:00:45]} 36. Qxf7+ {[%emt 0:01:07]} Kxf7 {[%emt 0:01:03]} 37. R8e7+ {[%emt 0:00:06]} Kf6 {[%emt 0:03:53]} 38. Rxa7 {[%emt 0:00:07]} Rfb8 {[%emt 0:05:38]} 39. Rf1+ {[%emt 0:01:43]} Ke5 {[%emt 0:00:21]} 40. Re7+ {[%emt 0:00:00]} Kd4 {[%emt 0:00:00]} 41. Rd1+ {[%emt 0:05:48] Ke5} 1/2-1/2

[Event "WYCC 2018 O18"]
[Site "Halkidiki"]
[Date "2018.10.27"]
[Round "8"]
[White "Carnicelli, Valerio"]
[Black "Goncalves, Davi Sulzbacher"]
[Result "0-1"]
[ECO "B33"]
[WhiteElo "2299"]
[BlackElo "2177"]
[Annotator "NA"]
[PlyCount "88"]
[EventDate "2018.10.20"]
[EventType "swiss"]
[EventCountry "GRE"]
[SourceTitle "playchess.com"]
[Source "ChessBase"]
[SourceQuality "1"]
[TimeControl "40/5400+30:1800+30"]

1. e4 {[%emt 0:00:00]} c5 {[%emt 0:00:00]} 2. Nf3 {[%emt 0:00:00]} Nc6 {[%emt 0:00:02]} 3. d4 {[%emt 0:00:00]} cxd4 {[%emt 0:00:07]} 4. Nxd4 {[%emt 0:00:00]} Nf6 {[%emt 0:00:11]} 5. Nc3 {[%emt 0:00:00]} e5 {[%emt 0:00:11]} 6. Ndb5 {[%emt 0:00:00]} d6 {[%emt 0:00:13]} 7. Bg5 {[%emt 0:00:00]} a6 {[%emt 0:00:09]} 8. Na3 {[%emt 0:00:02]} b5 {[%emt 0:00:10]} 9. Nd5 {[%emt 0:00:05]} Be7 {[%emt 0:00:14]} 10. Bxf6 {[%emt 0:00:05]} Bxf6 {[%emt 0:00:07]} 11. c3 {[%emt 0:00:07]} Bg5 {[%emt 0:01:24]} 12. Nc2 {[%emt 0:01:23]} O-O {[%emt 0:00:41]} 13. a4 {[%emt 0:00:04]} bxa4 {[%emt 0:00:11]} 14. Rxa4 {[%emt 0:00:06]} a5 {[%emt 0:00:22]} 15. Bc4 {[%emt 0:00:07]} Rb8 {[%emt 0:00:18]} 16. b3 {[%emt 0:00:05]} Kh8 {[%emt 0:00:18]} 17. Nce3 {[%emt 0:00:08]} g6 18. h4 {[%emt 0:00:41]} Bxh4 {[%emt 0:02:40]} 19. g3 {[%emt 0:00:08]} Bg5 {[%emt 0:00:15]} 20. f4 {[%emt 0:00:06]} exf4 {[%emt 0:00:14]} 21. gxf4 {[%emt 0:00:05]} Bh4+ {[%emt 0:00:22]} 22. Kf1 {[%emt 0:00:06]} f5 {[%emt 0:19:33]} 23. Ra2 {[%emt 0:00:17]} fxe4 {[%emt 0:00:45]} 24. Rah2 {[%emt 0:01:28]} g5 {[%emt 0:02:38]} 25. Qh5 {[%emt 0:01:12]} Rb7 {[%emt 0:14:25]} 26. Ke2 {[%emt 0:05:30]} Be6 {[%emt 0:16:36]} 27. Qh6 {[%emt 0:01:14]} Bg8 {[%emt 0:07:46]} 28. Rg2 {[%emt 0:01:34]} Rbf7 {[%emt 0:08:29]} 29. Kd1 {[%emt 0:34:55]} Rf6 {[%emt 0:05:22]} 30. Nxf6 {[%emt 0:15:18]} Rxf6 {[%emt 0:00:10]} 31. Qh5 {[%emt 0:01:18]} Rxf4 {[%emt 0:01:02]} 32. Rg4 {[%emt 0:06:11]} Rxg4 {[%emt 0:06:41]} 33. Qxg4 {[%emt 0:00:15]} d5 {[%emt 0:00:32]} 34. Bb5 {[%emt 0:15:53]} d4 {[%emt 0:00:41]} 35. Bxc6 {[%emt 0:00:39]} dxe3+ {[%emt 0:01:03]} 36. Qd7 {[%emt 0:03:36]} Qxd7+ {[%emt 0:00:35]} 37. Bxd7 {[%emt 0:00:04]} Bxb3+ {[%emt 0:00:08]} 38. Ke2 {[%emt 0:00:15]} Bf2 {[%emt 0:00:09]} 39. Bb5 {[%emt 0:01:29]} g4 {[%emt 0:02:45]} 40. Kf1 {[%emt 0:00:00]} Bc2 {[%emt 0:00:00]} 41. Be2 {[%emt 0:09:04]} Bd3 {[%emt 0:03:30]} 42. c4 {[%emt 0:00:12]} g3 {[%emt 0:00:49]} 43. c5 {[%emt 0:00:25]} Bxe2+ {[%emt 0:01:14]} 44. Kxe2 {[%emt 0:00:04]} g2 {[%emt 0:00:11]} 0-1

[Event "WYCC 2018 O18"]
[Site "Halkidiki"]
[Date "2018.10.27"]
[Round "8"]
[White "Kouskoutis, Georgios-Alexandros"]
[Black "Burovic, Rijad"]
[Result "0-1"]
[ECO "C16"]
[WhiteElo "2296"]
[BlackElo "2380"]
[Annotator "NA"]
[PlyCount "120"]
[EventDate "2018.10.20"]
[EventType "swiss"]
[EventCountry "GRE"]
[SourceTitle "playchess.com"]
[Source "ChessBase"]
[SourceQuality "1"]
[TimeControl "40/5400+30:1800+30"]

1. e4 {[%emt 0:00:00]} e6 {[%emt 0:01:49]} 2. d4 {[%emt 0:00:00]} d5 {[%emt 0:00:11]} 3. Nc3 {[%emt 0:00:00]} Bb4 {[%emt 0:00:26]} 4. e5 {[%emt 0:00:00]} Ne7 {[%emt 0:00:13]} 5. Bd2 {[%emt 0:01:00]} O-O {[%emt 0:05:55]} 6. a3 {[%emt 0:03:22]} Bxc3 {[%emt 0:05:48]} 7. Bxc3 {[%emt 0:00:09]} b6 $11 {[%emt 0:01:00] LiveBook: 5 Partien} 8. f4 {[%emt 0:12:13]} Ba6 {[%emt 0:02:07]} 9. Bxa6 {[%emt 0:02:39]} Nxa6 {[%emt 0:00:11]} 10. Qe2 {[%emt 0:00:54]} Qc8 {[%emt 0:01:40]} 11. Nf3 {[%emt 0:01:58]} c5 {[%emt 0:01:45]} 12. O-O-O {[%emt 0:07:39]} Rb8 {[%emt 0:03:16]} 13. g4 {[%emt 0:13:53]} b5 {[%emt 0:02:43]} 14. dxc5 {[%emt 0:02:32]} Nxc5 {[%emt 0:01:33]} 15. Nd4 {[%emt 0:03:20]} Nc6 {[%emt 0:05:54]} 16. Nxc6 {[%emt 0:11:51]} Qxc6 {[%emt 0:00:11]} 17. Kb1 {[%emt 0:01:04]} Rfc8 {[%emt 0:07:16]} 18. Rd4 {[%emt 0:13:22]} Qb6 {[%emt 0:09:29]} 19. Rhd1 {[%emt 0:00:39]} a5 {[%emt 0:02:22]} 20. Qe1 {[%emt 0:06:00]} Ra8 {[%emt 0:02:07]} 21. b3 {[%emt 0:04:18]} a4 {[%emt 0:09:22]} 22. b4 {[%emt 0:02:30]} Ne4 {[%emt 0:00:26]} 23. Rxe4 {[%emt 0:02:37]} dxe4 {[%emt 0:00:44]} 24. Qxe4 {[%emt 0:00:06]} Qc7 {[%emt 0:04:34]} 25. Bd4 {[%emt 0:03:41]} Qc4 {[%emt 0:02:10]} 26. Qd3 {[%emt 0:00:16]} Qxd3 {[%emt 0:06:39]} 27. cxd3 {[%emt 0:02:24]} Rd8 {[%emt 0:01:53]} 28. Bc5 {[%emt 0:00:04]} f6 {[%emt 0:09:01]} 29. Kc2 {[%emt 0:02:39]} g5 {[%emt 0:06:01]} 30. exf6 {[%emt 0:01:02]} gxf4 {[%emt 0:00:07]} 31. Rf1 {[%emt 0:02:07]} e5 {[%emt 0:01:06]} 32. d4 {[%emt 0:00:30]} exd4 {[%emt 0:00:41]} 33. Kd3 {[%emt 0:00:30]} Kf7 {[%emt 0:01:36]} 34. Rxf4 {[%emt 0:00:04]} Ra6 {[%emt 0:01:35]} 35. g5 {[%emt 0:00:59]} Re6 {[%emt 0:01:08]} 36. Bxd4 {[%emt 0:01:47]} Re1 {[%emt 0:00:51]} 37. Re4 {[%emt 0:00:45]} Rxe4 {[%emt 0:01:35]} 38. Kxe4 {[%emt 0:00:05]} Ke6 {[%emt 0:00:06]} 39. h4 {[%emt 0:00:07]} Rd5 {[%emt 0:02:14]} 40. Bc3 {[%emt 0:00:00]} Rf5 {[%emt 0:00:00]} 41. Bd4 {[%emt 0:13:05]} Rf1 {[%emt 0:04:03]} 42. h5 {[%emt 0:02:04]} Kf7 {[%emt 0:00:53]} 43. Kd3 {[%emt 0:17:31]} Rh1 {[%emt 0:02:56]} 44. h6 {[%emt 0:00:05]} Kg6 {[%emt 0:02:36]} 45. Ke4 {[%emt 0:00:26]} Kxg5 {[%emt 0:03:47]} 46. Kd5 {[%emt 0:00:06]} Kg6 {[%emt 0:03:47]} 47. Kc6 {[%emt 0:01:22]} Rh3 {[%emt 0:00:56]} 48. Kxb5 {[%emt 0:00:06]} Rxa3 {[%emt 0:00:04]} 49. Kc5 {[%emt 0:00:33]} Rb3 {[%emt 0:11:31]} 50. b5 {[%emt 0:00:08]} a3 {[%emt 0:00:31]} 51. b6 {[%emt 0:00:44]} a2 {[%emt 0:00:45]} 52. Kc6 {[%emt 0:00:23]} Rb4 {[%emt 0:01:43]} 53. Be5 {[%emt 0:00:11]} Re4 {[%emt 0:00:43]} 54. Bb2 {[%emt 0:01:22]} Rc4+ {[%emt 0:00:36]} 55. Kb5 {[%emt 0:00:45]} Rc2 {[%emt 0:00:25]} 56. Bd4 {[%emt 0:00:26]} Rc1 {[%emt 0:00:31]} 57. b7 {[%emt 0:00:27]} a1=Q {[%emt 0:00:14]} 58. Bxa1 {[%emt 0:00:22]} Rxa1 {[%emt 0:00:06]} 59. Kc6 {[%emt 0:00:42]} Rb1 {[%emt 0:00:51]} 60. Kc7 {[%emt 0:00:18]} Kxh6 {[%emt 0:01:11]} 0-1